Department family,Entity,Date,Expense Type,Expense area,Supplier,Transaction number,AP Amount (�),VAT registration number
Department of Health,NHS Barnsley CCG,30/11/2016,C&M-APMS Contract Value,PRC DELEGATED CO-COMMISSIONING,BARNSLEY HEALTHCARE FEDERATION,14915993,"24,181.58 ",
Department of Health,NHS Barnsley CCG,30/11/2016,C&M-APMS OOH Opt Outs,PRC DELEGATED CO-COMMISSIONING,BARNSLEY HEALTHCARE FEDERATION,14915993,2.84 ,
Department of Health,NHS Barnsley CCG,30/11/2016,C&M-APMS Prem Actual Rent,PRC DELEGATED CO-COMMISSIONING,BARNSLEY HEALTHCARE FEDERATION,14915993,"1,429.55 ",
Department of Health,NHS Barnsley CCG,30/11/2016,C&M-APMS Prem Rates,PRC DELEGATED CO-COMMISSIONING,BARNSLEY HEALTHCARE FEDERATION,14915993,377.52 ,
Department of Health,NHS Barnsley CCG,30/11/2016,C&M-APMS QOF Aspiration,PRC DELEGATED CO-COMMISSIONING,BARNSLEY HEALTHCARE FEDERATION,14915993,"2,248.38 ",
Department of Health,NHS Barnsley CCG,30/11/2016,C&M-PMS Out of Hours Opt Outs,PRC DELEGATED CO-COMMISSIONING,BARNSLEY HEALTHCARE FEDERATION,14915993,15.23 ,
Department of Health,NHS Barnsley CCG,30/11/2016,C&M-APMS OOH Opt Outs,PRC DELEGATED CO-COMMISSIONING,BARNSLEY HEALTHCARE FEDERATION,14915995,"30,390.59 ",
Department of Health,NHS Barnsley CCG,30/11/2016,C&M-APMS QOF Aspiration,PRC DELEGATED CO-COMMISSIONING,BARNSLEY HEALTHCARE FEDERATION,14915995,"1,999.71 ",
Department of Health,NHS Barnsley CCG,30/11/2016,C&M-APMS Contract Value,PRC DELEGATED CO-COMMISSIONING,BARNSLEY HEALTHCARE FEDERATION,14915997,"31,399.66 ",
Department of Health,NHS Barnsley CCG,30/11/2016,C&M-APMS OOH Opt Outs,PRC DELEGATED CO-COMMISSIONING,BARNSLEY HEALTHCARE FEDERATION,14915997,284.68 ,
Department of Health,NHS Barnsley CCG,30/11/2016,C&M-APMS QOF Aspiration,PRC DELEGATED CO-COMMISSIONING,BARNSLEY HEALTHCARE FEDERATION,14915997,"2,478.09 ",
Department of Health,NHS Barnsley CCG,30/11/2016,C&M-PMS Contract Value,PRC DELEGATED CO-COMMISSIONING,BARNSLEY HEALTHCARE FEDERATION,15173024,"36,673.93 ",
Department of Health,NHS Barnsley CCG,30/11/2016,C&M-PMS GP Statutory Levy,PRC DELEGATED CO-COMMISSIONING,BARNSLEY HEALTHCARE FEDERATION,15173024,(141.52),
Department of Health,NHS Barnsley CCG,30/11/2016,C&M-PMS Out of Hours Opt Outs,PRC DELEGATED CO-COMMISSIONING,BARNSLEY HEALTHCARE FEDERATION,15173024,"(1,821.63)",
Department of Health,NHS Barnsley CCG,30/11/2016,C&M-PMS Prem Healthcentre Rent,PRC DELEGATED CO-COMMISSIONING,BARNSLEY HEALTHCARE FEDERATION,15173024,"10,835.69 ",
Department of Health,NHS Barnsley CCG,30/11/2016,C&M-PMS QOF Aspiration,PRC DELEGATED CO-COMMISSIONING,BARNSLEY HEALTHCARE FEDERATION,15173024,"4,195.24 ",
Department of Health,NHS Barnsley CCG,30/11/2016,C&M-PMS Voluntary Levy,PRC DELEGATED CO-COMMISSIONING,BARNSLEY HEALTHCARE FEDERATION,15173024,(24.75),
Department of Health,NHS Barnsley CCG,30/11/2016,ME-PMS GP Pension EEs-PMS,PRC DELEGATED CO-COMMISSIONING,BARNSLEY HEALTHCARE FEDERATION,15173024,"(1,287.50)",
Department of Health,NHS Barnsley CCG,30/11/2016,ME-PMS GP Pension ERs Adjs - PMS,PRC DELEGATED CO-COMMISSIONING,BARNSLEY HEALTHCARE FEDERATION,15173024,"(1,472.90)",
Department of Health,NHS Barnsley CCG,30/11/2016,Miscellaneous Expenditure (L9),PROGRAMME PROJECTS,BARNSLEY HEALTHCARE FEDERATION,15182876,"128,107.00 ",
Department of Health,NHS Barnsley CCG,30/11/2016,Miscellaneous Expenditure (L9),PROGRAMME PROJECTS,BARNSLEY HEALTHCARE FEDERATION,15182880,"128,107.00 ",
Department of Health,NHS Barnsley CCG,30/11/2016,Hcare Srv Rec Fdtn Trust-CQUIN,ACUTE COMMISSIONING,BARNSLEY HOSPITAL NHS FOUNDATION TRUST,14829008,"251,865.00 ",
Department of Health,NHS Barnsley CCG,30/11/2016,Hcare Srv Rec Fdtn Trust-Contract Baseline,ACUTE COMMISSIONING,BARNSLEY HOSPITAL NHS FOUNDATION TRUST,14829008,"10,531,214.00 ",
Department of Health,NHS Barnsley CCG,30/11/2016,Hcare Srv Rec Fdtn Trust-Contract Baseline,ACUTE COMMISSIONING,BARNSLEY HOSPITAL NHS FOUNDATION TRUST,14929372,"(55,800.00)",
Department of Health,NHS Barnsley CCG,30/11/2016,Hcare Srv Rec Fdtn Trust-Contract Baseline,ACUTE COMMISSIONING,BARNSLEY HOSPITAL NHS FOUNDATION TRUST,15012785,"500,000.00 ",
Department of Health,NHS Barnsley CCG,30/11/2016,Hcare Srv Rec Fdtn Trust-Non Contract,COMMISSIONING - NON ACUTE,BARNSLEY HOSPITAL NHS FOUNDATION TRUST,15012803,"33,126.00 ",
Department of Health,NHS Barnsley CCG,30/11/2016,Chrgs from SLA,COMMISSIONING,BARNSLEY METROPOLITAN BOROUGH COUNCIL,14823083,"33,333.33 ",
Department of Health,NHS Barnsley CCG,30/11/2016,Clinical&Medical-Othe Public Sector,COMMISSIONING - NON ACUTE,BARNSLEY METROPOLITAN BOROUGH COUNCIL,14823083,"739,736.67 ",
Department of Health,NHS Barnsley CCG,30/11/2016,Clinical&Medical-Othe Public Sector,MENTAL HEALTH SERVICES - OTHER,BARNSLEY METROPOLITAN BOROUGH COUNCIL,14823083,"50,561.67 ",
Department of Health,NHS Barnsley CCG,30/11/2016,Clinical&Medical-Othe Public Sector,WINTER PRESSURES,BARNSLEY METROPOLITAN BOROUGH COUNCIL,14823083,"33,630.00 ",
Department of Health,NHS Barnsley CCG,30/11/2016,Cont Care- Adult 100% Fully Funded,CHC ADULT FULLY FUNDED,BARNSLEY METROPOLITAN BOROUGH COUNCIL,14823083,"10,463.83 ",
Department of Health,NHS Barnsley CCG,30/11/2016,GROSSRECOVEMPBEN - SALARIES & WAGES,COLLABORATIVE COMMISSIONING,BARNSLEY METROPOLITAN BOROUGH COUNCIL,14823083,"(9,665.00)",
Department of Health,NHS Barnsley CCG,30/11/2016,Local AuthorityRevenue-Non-Contract,COMMUNITY SERVICES,BARNSLEY METROPOLITAN BOROUGH COUNCIL,14823083,"(7,311.67)",
Department of Health,NHS Barnsley CCG,30/11/2016,Participation Fees,COMMUNITY SERVICES,BARNSLEY METROPOLITAN BOROUGH COUNCIL,14823083,"23,500.00 ",
Department of Health,NHS Barnsley CCG,30/11/2016,Services From Local Authorities,NURSING DIRECTORATE,BARNSLEY METROPOLITAN BOROUGH COUNCIL,14823083,"13,324.00 ",
Department of Health,NHS Barnsley CCG,30/11/2016,Soc Care-Bed-Based Int Care Servs,COMMUNITY SERVICES,BARNSLEY METROPOLITAN BOROUGH COUNCIL,14823083,"614,166.67 ",
Department of Health,NHS Barnsley CCG,30/11/2016,Soc Care-Maintaining Eligib Crit,COMMUNITY SERVICES,BARNSLEY METROPOLITAN BOROUGH COUNCIL,14823083,"790,830.83 ",
Department of Health,NHS Barnsley CCG,30/11/2016,Soc Care-Other Soc Care,COMMUNITY SERVICES,BARNSLEY METROPOLITAN BOROUGH COUNCIL,14823083,"116,666.67 ",
Department of Health,NHS Barnsley CCG,30/11/2016,Soc Care-Re-ablement services,COMMUNITY SERVICES,BARNSLEY METROPOLITAN BOROUGH COUNCIL,14823083,"8,166.67 ",
Department of Health,NHS Barnsley CCG,30/11/2016,Social Care-Res Short Stay Exp,COMMUNITY SERVICES,BARNSLEY METROPOLITAN BOROUGH COUNCIL,14823083,"126,833.33 ",
Department of Health,NHS Barnsley CCG,30/11/2016,Clinical&Medical-Commercial Sector,ACUTE COMMISSIONING,BMI HEALTHCARE COLLECTIONS,15166276,"37,156.35 ",
Department of Health,NHS Barnsley CCG,30/11/2016,Clinical&Medical-Commercial Sector,ACUTE COMMISSIONING,CARE UK CLINICAL SERVICES LTD,14929303,"27,286.07 ",
Department of Health,NHS Barnsley CCG,30/11/2016,Clinical&Medical-Commercial Sector,OUT OF HOURS,CARE UK CLINICAL SERVICES LTD,14929305,"161,281.08 ",
Department of Health,NHS Barnsley CCG,30/11/2016,Clinical&Medical-Commercial Sector,ACUTE COMMISSIONING,CLAREMONT HOSPITAL,14929331,"48,289.00 ",
Department of Health,NHS Barnsley CCG,30/11/2016,C&M-GMS Global Sum,PRC DELEGATED CO-COMMISSIONING,NHS BARNSLEY GP,15122596,"74,349.17 ",
Department of Health,NHS Barnsley CCG,30/11/2016,C&M-GMS Prem Healthcentre Rent,PRC DELEGATED CO-COMMISSIONING,NHS BARNSLEY GP,15122596,"24,168.15 ",
Department of Health,NHS Barnsley CCG,30/11/2016,C&M-GMS QOF Aspiration,PRC DELEGATED CO-COMMISSIONING,NHS BARNSLEY GP,15122596,"6,825.50 ",
Department of Health,NHS Barnsley CCG,30/11/2016,C&M-PMS Contract Value,PRC DELEGATED CO-COMMISSIONING,NHS BARNSLEY GP,14914830,"(42,060.41)",
Department of Health,NHS Barnsley CCG,30/11/2016,C&M-PMS GP Statutory Levy,PRC DELEGATED CO-COMMISSIONING,NHS BARNSLEY GP,14914830,(206.48),
Department of Health,NHS Barnsley CCG,30/11/2016,C&M-PMS Out of Hours Opt Outs,PRC DELEGATED CO-COMMISSIONING,NHS BARNSLEY GP,14914830,(37.34),
Department of Health,NHS Barnsley CCG,30/11/2016,C&M-PMS Voluntary Levy,PRC DELEGATED CO-COMMISSIONING,NHS BARNSLEY GP,14914830,(36.12),
Department of Health,NHS Barnsley CCG,30/11/2016,C&M-PMS Contract Value,PRC DELEGATED CO-COMMISSIONING,NHS BARNSLEY GP,14914857,"88,321.86 ",
Department of Health,NHS Barnsley CCG,30/11/2016,C&M-PMS Out of Hours Opt Outs,PRC DELEGATED CO-COMMISSIONING,NHS BARNSLEY GP,14914857,"(2,249.82)",
Department of Health,NHS Barnsley CCG,30/11/2016,C&M-PMS QOF Aspiration,PRC DELEGATED CO-COMMISSIONING,NHS BARNSLEY GP,14914857,"4,886.06 ",
Department of Health,NHS Barnsley CCG,30/11/2016,Hcare Srv Rec Fdtn Trust-CQUIN,ACUTE COMMISSIONING,DONCASTER AND BASSETLAW HOSPITALS NHS FOUNDATION TRUST,15095710,"6,490.00 ",
Department of Health,NHS Barnsley CCG,30/11/2016,Hcare Srv Rec Fdtn Trust-Contract Baseline,ACUTE COMMISSIONING,DONCASTER AND BASSETLAW HOSPITALS NHS FOUNDATION TRUST,15095710,"558,167.00 ",
Department of Health,NHS Barnsley CCG,31/10/2016,Hcare Srv Rec Fdtn Trust-CQUIN,ACUTE COMMISSIONING,DONCASTER AND BASSETLAW HOSPITALS NHS FOUNDATION TRUST,14725976,"6,490.00 ",
Department of Health,NHS Barnsley CCG,31/10/2016,Hcare Srv Rec Fdtn Trust-Contract Baseline,ACUTE COMMISSIONING,DONCASTER AND BASSETLAW HOSPITALS NHS FOUNDATION TRUST,14725976,"558,167.00 ",
Department of Health,NHS Barnsley CCG,30/11/2016,C&M-PMS Contract Value,PRC DELEGATED CO-COMMISSIONING,NHS BARNSLEY GP,14915967,"(79,186.14)",
Department of Health,NHS Barnsley CCG,30/11/2016,C&M-PMS GP Statutory Levy,PRC DELEGATED CO-COMMISSIONING,NHS BARNSLEY GP,14915967,(360.33),
Department of Health,NHS Barnsley CCG,30/11/2016,C&M-PMS Out of Hours Opt Outs,PRC DELEGATED CO-COMMISSIONING,NHS BARNSLEY GP,14915967,(64.54),
Department of Health,NHS Barnsley CCG,30/11/2016,C&M-PMS Voluntary Levy,PRC DELEGATED CO-COMMISSIONING,NHS BARNSLEY GP,14915967,(63.03),
Department of Health,NHS Barnsley CCG,30/11/2016,ME-PMS GP Pension EEs-PMS,PRC DELEGATED CO-COMMISSIONING,NHS BARNSLEY GP,14915967,"(7,931.25)",
Department of Health,NHS Barnsley CCG,30/11/2016,ME-PMS GP Pension ERs Adjs - PMS,PRC DELEGATED CO-COMMISSIONING,NHS BARNSLEY GP,14915967,"(8,401.24)",
Department of Health,NHS Barnsley CCG,30/11/2016,C&M-PMS Contract Value,PRC DELEGATED CO-COMMISSIONING,NHS BARNSLEY GP,14915968,"165,167.60 ",
Department of Health,NHS Barnsley CCG,30/11/2016,C&M-PMS DES UNPLANNED ADMISSIONS,PRC DELEGATED CO-COMMISSIONING,NHS BARNSLEY GP,14915968,"8,492.33 ",
Department of Health,NHS Barnsley CCG,30/11/2016,C&M-PMS Out of Hours Opt Outs,PRC DELEGATED CO-COMMISSIONING,NHS BARNSLEY GP,14915968,"(4,358.14)",
Department of Health,NHS Barnsley CCG,30/11/2016,C&M-PMS Prem Healthcentre Rent,PRC DELEGATED CO-COMMISSIONING,NHS BARNSLEY GP,14915968,"19,781.47 ",
Department of Health,NHS Barnsley CCG,30/11/2016,C&M-PMS Prem Notional Rent,PRC DELEGATED CO-COMMISSIONING,NHS BARNSLEY GP,14915968,"1,833.33 ",
Department of Health,NHS Barnsley CCG,30/11/2016,C&M-PMS Prem Rates,PRC DELEGATED CO-COMMISSIONING,NHS BARNSLEY GP,14915968,270.23 ,
Department of Health,NHS Barnsley CCG,30/11/2016,C&M-PMS QOF Aspiration,PRC DELEGATED CO-COMMISSIONING,NHS BARNSLEY GP,14915968,"9,268.60 ",
Department of Health,NHS Barnsley CCG,30/11/2016,C&M-PMS Contract Value,PRC DELEGATED CO-COMMISSIONING,NHS BARNSLEY GP,14915970,"28,512.10 ",
Department of Health,NHS Barnsley CCG,30/11/2016,C&M-PMS Out of Hours Opt Outs,PRC DELEGATED CO-COMMISSIONING,NHS BARNSLEY GP,14915970,(757.25),
Department of Health,NHS Barnsley CCG,30/11/2016,C&M-PMS Prem Actual Rent,PRC DELEGATED CO-COMMISSIONING,NHS BARNSLEY GP,14915970,674.50 ,
Department of Health,NHS Barnsley CCG,30/11/2016,C&M-PMS QOF Aspiration,PRC DELEGATED CO-COMMISSIONING,NHS BARNSLEY GP,14915970,"1,375.99 ",
Department of Health,NHS Barnsley CCG,30/11/2016,C&M-PMS Contract Value,PRC DELEGATED CO-COMMISSIONING,NHS BARNSLEY GP,14915971,"(42,224.08)",
Department of Health,NHS Barnsley CCG,30/11/2016,C&M-PMS GP Statutory Levy,PRC DELEGATED CO-COMMISSIONING,NHS BARNSLEY GP,14915971,(222.71),
Department of Health,NHS Barnsley CCG,30/11/2016,C&M-PMS Out of Hours Opt Outs,PRC DELEGATED CO-COMMISSIONING,NHS BARNSLEY GP,14915971,(65.64),
Department of Health,NHS Barnsley CCG,30/11/2016,C&M-PMS Voluntary Levy,PRC DELEGATED CO-COMMISSIONING,NHS BARNSLEY GP,14915971,(38.96),
Department of Health,NHS Barnsley CCG,30/11/2016,ME-PMS GP Pension EEs-PMS,PRC DELEGATED CO-COMMISSIONING,NHS BARNSLEY GP,14915971,"(3,522.50)",
Department of Health,NHS Barnsley CCG,30/11/2016,ME-PMS GP Pension ERs Adjs - PMS,PRC DELEGATED CO-COMMISSIONING,NHS BARNSLEY GP,14915971,"(3,598.83)",
Department of Health,NHS Barnsley CCG,30/11/2016,C&M-PMS Contract Value,PRC DELEGATED CO-COMMISSIONING,NHS BARNSLEY GP,14915972,"89,804.44 ",
Department of Health,NHS Barnsley CCG,30/11/2016,C&M-PMS DES UNPLANNED ADMISSIONS,PRC DELEGATED CO-COMMISSIONING,NHS BARNSLEY GP,14915972,"5,091.24 ",
Department of Health,NHS Barnsley CCG,30/11/2016,C&M-PMS Out of Hours Opt Outs,PRC DELEGATED CO-COMMISSIONING,NHS BARNSLEY GP,14915972,"(2,381.67)",
Department of Health,NHS Barnsley CCG,30/11/2016,C&M-PMS Prem Healthcentre Rent,PRC DELEGATED CO-COMMISSIONING,NHS BARNSLEY GP,14915972,"21,557.03 ",
Department of Health,NHS Barnsley CCG,30/11/2016,C&M-PMS QOF Aspiration,PRC DELEGATED CO-COMMISSIONING,NHS BARNSLEY GP,14915972,"4,879.28 ",
Department of Health,NHS Barnsley CCG,30/11/2016,C&M-GMS Global Sum,PRC DELEGATED CO-COMMISSIONING,NHS BARNSLEY GP,15122598,"66,796.97 ",
Department of Health,NHS Barnsley CCG,30/11/2016,C&M-GMS Prem Notional Rent,PRC DELEGATED CO-COMMISSIONING,NHS BARNSLEY GP,15122598,"4,483.33 ",
Department of Health,NHS Barnsley CCG,30/11/2016,C&M-GMS Prem Rates,PRC DELEGATED CO-COMMISSIONING,NHS BARNSLEY GP,15122598,"1,751.93 ",
Department of Health,NHS Barnsley CCG,30/11/2016,C&M-GMS QOF Aspiration,PRC DELEGATED CO-COMMISSIONING,NHS BARNSLEY GP,15122598,"8,046.05 ",
Department of Health,NHS Barnsley CCG,30/11/2016,C&M-GMS Global Sum,PRC DELEGATED CO-COMMISSIONING,NHS BARNSLEY GP,15122600,"61,935.19 ",
Department of Health,NHS Barnsley CCG,30/11/2016,C&M-GMS Prem Healthcentre Rent,PRC DELEGATED CO-COMMISSIONING,NHS BARNSLEY GP,15122600,"3,289.55 ",
Department of Health,NHS Barnsley CCG,30/11/2016,C&M-GMS Prem Rates,PRC DELEGATED CO-COMMISSIONING,NHS BARNSLEY GP,15122600,677.60 ,
Department of Health,NHS Barnsley CCG,30/11/2016,C&M-GMS QOF Aspiration,PRC DELEGATED CO-COMMISSIONING,NHS BARNSLEY GP,15122600,"6,884.36 ",
Department of Health,NHS Barnsley CCG,30/11/2016,C&M-PMS Contract Value,PRC DELEGATED CO-COMMISSIONING,NHS BARNSLEY GP,14915975,"(108,446.66)",
Department of Health,NHS Barnsley CCG,30/11/2016,C&M-PMS GP Statutory Levy,PRC DELEGATED CO-COMMISSIONING,NHS BARNSLEY GP,14915975,(556.78),
Department of Health,NHS Barnsley CCG,30/11/2016,C&M-PMS Out of Hours Opt Outs,PRC DELEGATED CO-COMMISSIONING,NHS BARNSLEY GP,14915975,(133.18),
Department of Health,NHS Barnsley CCG,30/11/2016,C&M-PMS Voluntary Levy,PRC DELEGATED CO-COMMISSIONING,NHS BARNSLEY GP,14915975,(97.39),
Department of Health,NHS Barnsley CCG,30/11/2016,ME - PMS TPS Added Years Adj EEs,PRC DELEGATED CO-COMMISSIONING,NHS BARNSLEY GP,14915975,(610.96),
Department of Health,NHS Barnsley CCG,30/11/2016,ME-PMS GP Pension EEs-PMS,PRC DELEGATED CO-COMMISSIONING,NHS BARNSLEY GP,14915975,"(13,675.09)",
Department of Health,NHS Barnsley CCG,30/11/2016,ME-PMS GP Pension ERs Adjs - PMS,PRC DELEGATED CO-COMMISSIONING,NHS BARNSLEY GP,14915975,"(14,201.82)",
Department of Health,NHS Barnsley CCG,30/11/2016,C&M-PMS Baseline Adjustment,PRC DELEGATED CO-COMMISSIONING,NHS BARNSLEY GP,14915976,188.08 ,
Department of Health,NHS Barnsley CCG,30/11/2016,C&M-PMS Contract Value,PRC DELEGATED CO-COMMISSIONING,NHS BARNSLEY GP,14915976,"228,450.10 ",
Department of Health,NHS Barnsley CCG,30/11/2016,C&M-PMS DES UNPLANNED ADMISSIONS,PRC DELEGATED CO-COMMISSIONING,NHS BARNSLEY GP,14915976,"12,832.05 ",
Department of Health,NHS Barnsley CCG,30/11/2016,C&M-PMS Out of Hours Opt Outs,PRC DELEGATED CO-COMMISSIONING,NHS BARNSLEY GP,14915976,"(5,758.92)",
Department of Health,NHS Barnsley CCG,30/11/2016,C&M-PMS Prem Notional Rent,PRC DELEGATED CO-COMMISSIONING,NHS BARNSLEY GP,14915976,"6,333.33 ",
Department of Health,NHS Barnsley CCG,30/11/2016,C&M-PMS Prem Rates,PRC DELEGATED CO-COMMISSIONING,NHS BARNSLEY GP,14915976,"3,043.55 ",
Department of Health,NHS Barnsley CCG,30/11/2016,C&M-PMS QOF Aspiration,PRC DELEGATED CO-COMMISSIONING,NHS BARNSLEY GP,14915976,"13,009.21 ",
Department of Health,NHS Barnsley CCG,30/11/2016,C&M-PMS Cost of Drugs -Dispensing,LOCAL ENHANCED SERVICES,NHS BARNSLEY GP,15142841,"(76,067.04)",
Department of Health,NHS Barnsley CCG,30/11/2016,C&M-PMS Prsc Chrgs Cll&Rmttd by GPs,PRC DELEGATED CO-COMMISSIONING,NHS BARNSLEY GP,15142841,"(4,670.40)",
Department of Health,NHS Barnsley CCG,30/11/2016,C&M-PMS Cost of Drugs -Dispensing,LOCAL ENHANCED SERVICES,NHS BARNSLEY GP,15142842,"161,941.24 ",
Department of Health,NHS Barnsley CCG,30/11/2016,C&M-PMS Prof fees Dispensing,PRC DELEGATED CO-COMMISSIONING,NHS BARNSLEY GP,15142842,"24,521.57 ",
Department of Health,NHS Barnsley CCG,30/11/2016,C&M-PMS Prsc Chrgs Cll&Rmttd by GPs,LOCAL ENHANCED SERVICES,NHS BARNSLEY GP,15142842,"4,670.40 ",
Department of Health,NHS Barnsley CCG,30/11/2016,C&M-GMS Global Sum,PRC DELEGATED CO-COMMISSIONING,NHS BARNSLEY GP,15122602,"37,142.76 ",
Department of Health,NHS Barnsley CCG,30/11/2016,C&M-GMS Prem Notional Rent,PRC DELEGATED CO-COMMISSIONING,NHS BARNSLEY GP,15122602,"1,416.67 ",
Department of Health,NHS Barnsley CCG,30/11/2016,C&M-GMS Prem Rates,PRC DELEGATED CO-COMMISSIONING,NHS BARNSLEY GP,15122602,"1,042.62 ",
Department of Health,NHS Barnsley CCG,30/11/2016,C&M-GMS QOF Aspiration,PRC DELEGATED CO-COMMISSIONING,NHS BARNSLEY GP,15122602,"3,898.31 ",
Department of Health,NHS Barnsley CCG,30/11/2016,C&M-PMS Contract Value,PRC DELEGATED CO-COMMISSIONING,NHS BARNSLEY GP,14915973,"(39,672.31)",
Department of Health,NHS Barnsley CCG,30/11/2016,C&M-PMS GP Statutory Levy,PRC DELEGATED CO-COMMISSIONING,NHS BARNSLEY GP,14915973,(158.52),
Department of Health,NHS Barnsley CCG,30/11/2016,C&M-PMS Out of Hours Opt Outs,PRC DELEGATED CO-COMMISSIONING,NHS BARNSLEY GP,14915973,(26.54),
Department of Health,NHS Barnsley CCG,30/11/2016,C&M-PMS Prem Healthcentre Rent,PRC DELEGATED CO-COMMISSIONING,NHS BARNSLEY GP,14915973,(0.16),
Department of Health,NHS Barnsley CCG,30/11/2016,C&M-PMS Voluntary Levy,PRC DELEGATED CO-COMMISSIONING,NHS BARNSLEY GP,14915973,(27.73),
Department of Health,NHS Barnsley CCG,30/11/2016,ME-PMS GP Pension EEs-PMS,PRC DELEGATED CO-COMMISSIONING,NHS BARNSLEY GP,14915973,"(1,350.92)",
Department of Health,NHS Barnsley CCG,30/11/2016,ME-PMS GP Pension ERs Adjs - PMS,PRC DELEGATED CO-COMMISSIONING,NHS BARNSLEY GP,14915973,"(1,332.28)",
Department of Health,NHS Barnsley CCG,30/11/2016,C&M-PMS Baseline Adjustment,PRC DELEGATED CO-COMMISSIONING,NHS BARNSLEY GP,14915974,"5,074.17 ",
Department of Health,NHS Barnsley CCG,30/11/2016,C&M-PMS Contract Value,PRC DELEGATED CO-COMMISSIONING,NHS BARNSLEY GP,14915974,"77,135.54 ",
Department of Health,NHS Barnsley CCG,30/11/2016,C&M-PMS Out of Hours Opt Outs,PRC DELEGATED CO-COMMISSIONING,NHS BARNSLEY GP,14915974,"(1,806.05)",
Department of Health,NHS Barnsley CCG,30/11/2016,C&M-PMS Prem Healthcentre Rent,PRC DELEGATED CO-COMMISSIONING,NHS BARNSLEY GP,14915974,"2,989.68 ",
Department of Health,NHS Barnsley CCG,30/11/2016,C&M-PMS Prem Notional Rent,PRC DELEGATED CO-COMMISSIONING,NHS BARNSLEY GP,14915974,"7,833.33 ",
Department of Health,NHS Barnsley CCG,30/11/2016,C&M-PMS Prem Rates,PRC DELEGATED CO-COMMISSIONING,NHS BARNSLEY GP,14915974,"2,414.27 ",
Department of Health,NHS Barnsley CCG,30/11/2016,C&M-PMS QOF Aspiration,PRC DELEGATED CO-COMMISSIONING,NHS BARNSLEY GP,14915974,"2,466.00 ",
Department of Health,NHS Barnsley CCG,30/11/2016,C&M-GMS Global Sum,PRC DELEGATED CO-COMMISSIONING,NHS BARNSLEY GP,15122606,"95,226.95 ",
Department of Health,NHS Barnsley CCG,30/11/2016,C&M-GMS Prem Notional Rent,PRC DELEGATED CO-COMMISSIONING,NHS BARNSLEY GP,15122606,"6,208.33 ",
Department of Health,NHS Barnsley CCG,30/11/2016,C&M-GMS Prem Rates,PRC DELEGATED CO-COMMISSIONING,NHS BARNSLEY GP,15122606,"2,078.16 ",
Department of Health,NHS Barnsley CCG,30/11/2016,C&M-GMS QOF Aspiration,PRC DELEGATED CO-COMMISSIONING,NHS BARNSLEY GP,15122606,"10,127.48 ",
Department of Health,NHS Barnsley CCG,30/11/2016,C&M-PMS Contract Value,PRC DELEGATED CO-COMMISSIONING,NHS BARNSLEY GP,14915977,"(83,041.03)",
Department of Health,NHS Barnsley CCG,30/11/2016,C&M-PMS GP Statutory Levy,PRC DELEGATED CO-COMMISSIONING,NHS BARNSLEY GP,14915977,(398.26),
Department of Health,NHS Barnsley CCG,30/11/2016,C&M-PMS Out of Hours Opt Outs,PRC DELEGATED CO-COMMISSIONING,NHS BARNSLEY GP,14915977,(68.06),
Department of Health,NHS Barnsley CCG,30/11/2016,C&M-PMS Voluntary Levy,PRC DELEGATED CO-COMMISSIONING,NHS BARNSLEY GP,14915977,(69.66),
Department of Health,NHS Barnsley CCG,30/11/2016,ME - PMS TPS Added Years Adj EEs,PRC DELEGATED CO-COMMISSIONING,NHS BARNSLEY GP,14915977,(585.27),
Department of Health,NHS Barnsley CCG,30/11/2016,ME-PMS GP Pension EEs-PMS,PRC DELEGATED CO-COMMISSIONING,NHS BARNSLEY GP,14915977,"(7,539.34)",
Department of Health,NHS Barnsley CCG,30/11/2016,ME-PMS GP Pension ERs Adjs - PMS,PRC DELEGATED CO-COMMISSIONING,NHS BARNSLEY GP,14915977,"(7,678.24)",
Department of Health,NHS Barnsley CCG,30/11/2016,C&M-PMS Contract Value,PRC DELEGATED CO-COMMISSIONING,NHS BARNSLEY GP,14915978,"174,108.14 ",
Department of Health,NHS Barnsley CCG,30/11/2016,C&M-PMS Out of Hours Opt Outs,PRC DELEGATED CO-COMMISSIONING,NHS BARNSLEY GP,14915978,"(4,616.05)",
Department of Health,NHS Barnsley CCG,30/11/2016,C&M-PMS Prem Notional Rent,PRC DELEGATED CO-COMMISSIONING,NHS BARNSLEY GP,14915978,"13,500.00 ",
Department of Health,NHS Barnsley CCG,30/11/2016,C&M-PMS Prem Rates,PRC DELEGATED CO-COMMISSIONING,NHS BARNSLEY GP,14915978,520.30 ,
Department of Health,NHS Barnsley CCG,30/11/2016,C&M-PMS QOF Aspiration,PRC DELEGATED CO-COMMISSIONING,NHS BARNSLEY GP,14915978,"9,037.78 ",
Department of Health,NHS Barnsley CCG,30/11/2016,C&M-GMS Global Sum,PRC DELEGATED CO-COMMISSIONING,NHS BARNSLEY GP,15122604,"85,961.05 ",
Department of Health,NHS Barnsley CCG,30/11/2016,C&M-GMS Prem Healthcentre Rent,PRC DELEGATED CO-COMMISSIONING,NHS BARNSLEY GP,15122604,"31,619.95 ",
Department of Health,NHS Barnsley CCG,30/11/2016,C&M-GMS QOF Aspiration,PRC DELEGATED CO-COMMISSIONING,NHS BARNSLEY GP,15122604,"9,007.62 ",
Department of Health,NHS Barnsley CCG,30/11/2016,C&M-GMS Global Sum,PRC DELEGATED CO-COMMISSIONING,NHS BARNSLEY GP,15122608,"70,936.40 ",
Department of Health,NHS Barnsley CCG,30/11/2016,C&M-GMS Prem Rates,PRC DELEGATED CO-COMMISSIONING,NHS BARNSLEY GP,15122608,"2,534.70 ",
Department of Health,NHS Barnsley CCG,30/11/2016,C&M-GMS QOF Aspiration,PRC DELEGATED CO-COMMISSIONING,NHS BARNSLEY GP,15122608,"9,545.99 ",
Department of Health,NHS Barnsley CCG,30/11/2016,C&M-PMS Contract Value,PRC DELEGATED CO-COMMISSIONING,NHS BARNSLEY GP,14915979,"(74,620.84)",
Department of Health,NHS Barnsley CCG,30/11/2016,C&M-PMS DES Minor Surgery,PRC DELEGATED CO-COMMISSIONING,NHS BARNSLEY GP,14915979,"(2,642.44)",
Department of Health,NHS Barnsley CCG,30/11/2016,C&M-PMS GP Statutory Levy,PRC DELEGATED CO-COMMISSIONING,NHS BARNSLEY GP,14915979,(398.36),
Department of Health,NHS Barnsley CCG,30/11/2016,C&M-PMS Out of Hours Opt Outs,PRC DELEGATED CO-COMMISSIONING,NHS BARNSLEY GP,14915979,(254.71),
Department of Health,NHS Barnsley CCG,30/11/2016,C&M-PMS Voluntary Levy,PRC DELEGATED CO-COMMISSIONING,NHS BARNSLEY GP,14915979,(69.68),
Department of Health,NHS Barnsley CCG,30/11/2016,ME - PMS TPS Added Years Adj EEs,PRC DELEGATED CO-COMMISSIONING,NHS BARNSLEY GP,14915979,(266.67),
Department of Health,NHS Barnsley CCG,30/11/2016,ME-PMS GP Pension EEs-PMS,PRC DELEGATED CO-COMMISSIONING,NHS BARNSLEY GP,14915979,"(7,526.25)",
Department of Health,NHS Barnsley CCG,30/11/2016,ME-PMS GP Pension ERs Adjs - PMS,PRC DELEGATED CO-COMMISSIONING,NHS BARNSLEY GP,14915979,"(8,186.76)",
Department of Health,NHS Barnsley CCG,30/11/2016,C&M-PMS Contract Value,PRC DELEGATED CO-COMMISSIONING,NHS BARNSLEY GP,14915980,"161,393.83 ",
Department of Health,NHS Barnsley CCG,30/11/2016,C&M-PMS DES Learn Dsblty Hlth Chk,PRC DELEGATED CO-COMMISSIONING,NHS BARNSLEY GP,14915980,580.00 ,
Department of Health,NHS Barnsley CCG,30/11/2016,C&M-PMS DES Minor Surgery,PRC DELEGATED CO-COMMISSIONING,NHS BARNSLEY GP,14915980,42.62 ,
Department of Health,NHS Barnsley CCG,30/11/2016,C&M-PMS Out of Hours Opt Outs,PRC DELEGATED CO-COMMISSIONING,NHS BARNSLEY GP,14915980,"(4,208.83)",
Department of Health,NHS Barnsley CCG,30/11/2016,C&M-PMS Prem Notional Rent,PRC DELEGATED CO-COMMISSIONING,NHS BARNSLEY GP,14915980,"8,125.00 ",
Department of Health,NHS Barnsley CCG,30/11/2016,C&M-PMS Prem Rates,PRC DELEGATED CO-COMMISSIONING,NHS BARNSLEY GP,14915980,951.94 ,
Department of Health,NHS Barnsley CCG,30/11/2016,C&M-PMS QOF Aspiration,PRC DELEGATED CO-COMMISSIONING,NHS BARNSLEY GP,14915980,"9,498.69 ",
Department of Health,NHS Barnsley CCG,30/11/2016,C&M-GMS Global Sum,PRC DELEGATED CO-COMMISSIONING,NHS BARNSLEY GP,15122610,"22,026.09 ",
Department of Health,NHS Barnsley CCG,30/11/2016,C&M-GMS Prem Notional Rent,PRC DELEGATED CO-COMMISSIONING,NHS BARNSLEY GP,15122610,"1,572.92 ",
Department of Health,NHS Barnsley CCG,30/11/2016,C&M-GMS Prem Rates,PRC DELEGATED CO-COMMISSIONING,NHS BARNSLEY GP,15122610,433.58 ,
Department of Health,NHS Barnsley CCG,30/11/2016,C&M-GMS QOF Aspiration,PRC DELEGATED CO-COMMISSIONING,NHS BARNSLEY GP,15122610,"2,279.92 ",
Department of Health,NHS Barnsley CCG,30/11/2016,C&M-PMS Contract Value,PRC DELEGATED CO-COMMISSIONING,NHS BARNSLEY GP,14915981,"(78,437.25)",
Department of Health,NHS Barnsley CCG,30/11/2016,C&M-PMS DES Minor Surgery,PRC DELEGATED CO-COMMISSIONING,NHS BARNSLEY GP,14915981,"(2,812.92)",
Department of Health,NHS Barnsley CCG,30/11/2016,C&M-PMS GP Statutory Levy,PRC DELEGATED CO-COMMISSIONING,NHS BARNSLEY GP,14915981,(375.63),
Department of Health,NHS Barnsley CCG,30/11/2016,C&M-PMS Out of Hours Opt Outs,PRC DELEGATED CO-COMMISSIONING,NHS BARNSLEY GP,14915981,(95.32),
Department of Health,NHS Barnsley CCG,30/11/2016,C&M-PMS Voluntary Levy,PRC DELEGATED CO-COMMISSIONING,NHS BARNSLEY GP,14915981,(65.70),
Department of Health,NHS Barnsley CCG,30/11/2016,ME-PMS GP Pension EEs-PMS,PRC DELEGATED CO-COMMISSIONING,NHS BARNSLEY GP,14915981,"(5,726.25)",
Department of Health,NHS Barnsley CCG,30/11/2016,ME-PMS GP Pension ERs Adjs - PMS,PRC DELEGATED CO-COMMISSIONING,NHS BARNSLEY GP,14915981,"(6,065.59)",
Department of Health,NHS Barnsley CCG,30/11/2016,C&M-PMS Contract Value,PRC DELEGATED CO-COMMISSIONING,NHS BARNSLEY GP,14936063,"166,307.44 ",
Department of Health,NHS Barnsley CCG,30/11/2016,C&M-PMS DES UNPLANNED ADMISSIONS,PRC DELEGATED CO-COMMISSIONING,NHS BARNSLEY GP,14936063,"8,524.67 ",
Department of Health,NHS Barnsley CCG,30/11/2016,C&M-PMS Out of Hours Opt Outs,PRC DELEGATED CO-COMMISSIONING,NHS BARNSLEY GP,14936063,"(4,424.42)",
Department of Health,NHS Barnsley CCG,30/11/2016,C&M-PMS Prem Actual Rent,PRC DELEGATED CO-COMMISSIONING,NHS BARNSLEY GP,14936063,"12,708.33 ",
Department of Health,NHS Barnsley CCG,30/11/2016,C&M-PMS Prem Rates,PRC DELEGATED CO-COMMISSIONING,NHS BARNSLEY GP,14936063,"2,153.66 ",
Department of Health,NHS Barnsley CCG,30/11/2016,C&M-PMS QOF Aspiration,PRC DELEGATED CO-COMMISSIONING,NHS BARNSLEY GP,14936063,"9,731.41 ",
Department of Health,NHS Barnsley CCG,30/11/2016,ME - PMS GP Prior Year ERs,PRC DELEGATED CO-COMMISSIONING,NHS BARNSLEY GP,14936063,"1,430.00 ",
Department of Health,NHS Barnsley CCG,30/11/2016,ME-PMS GP Prior Year EEs,PRC DELEGATED CO-COMMISSIONING,NHS BARNSLEY GP,14936063,930.00 ,
Department of Health,NHS Barnsley CCG,30/11/2016,C&M-PMS Contract Value,PRC DELEGATED CO-COMMISSIONING,NHS BARNSLEY GP,14915982,"(67,727.16)",
Department of Health,NHS Barnsley CCG,30/11/2016,C&M-PMS GP Statutory Levy,PRC DELEGATED CO-COMMISSIONING,NHS BARNSLEY GP,14915982,(357.60),
Department of Health,NHS Barnsley CCG,30/11/2016,C&M-PMS Out of Hours Opt Outs,PRC DELEGATED CO-COMMISSIONING,NHS BARNSLEY GP,14915982,(110.12),
Department of Health,NHS Barnsley CCG,30/11/2016,ME-PMS GP Pension EEs-PMS,PRC DELEGATED CO-COMMISSIONING,NHS BARNSLEY GP,14915982,"(2,670.60)",
Department of Health,NHS Barnsley CCG,30/11/2016,ME-PMS GP Pension ERs Adjs - PMS,PRC DELEGATED CO-COMMISSIONING,NHS BARNSLEY GP,14915982,"(2,871.95)",
Department of Health,NHS Barnsley CCG,30/11/2016,C&M-PMS Contract Value,PRC DELEGATED CO-COMMISSIONING,NHS BARNSLEY GP,14915983,"144,130.26 ",
Department of Health,NHS Barnsley CCG,30/11/2016,C&M-PMS DES Minor Surgery,PRC DELEGATED CO-COMMISSIONING,NHS BARNSLEY GP,14915983,"2,216.24 ",
Department of Health,NHS Barnsley CCG,30/11/2016,C&M-PMS Out of Hours Opt Outs,PRC DELEGATED CO-COMMISSIONING,NHS BARNSLEY GP,14915983,"(3,820.17)",
Department of Health,NHS Barnsley CCG,30/11/2016,C&M-PMS Prem Actual Rent,PRC DELEGATED CO-COMMISSIONING,NHS BARNSLEY GP,14915983,"8,566.67 ",
Department of Health,NHS Barnsley CCG,30/11/2016,C&M-PMS Prem Rates,PRC DELEGATED CO-COMMISSIONING,NHS BARNSLEY GP,14915983,"1,428.87 ",
Department of Health,NHS Barnsley CCG,30/11/2016,C&M-PMS QOF Aspiration,PRC DELEGATED CO-COMMISSIONING,NHS BARNSLEY GP,14915983,"7,252.24 ",
Department of Health,NHS Barnsley CCG,30/11/2016,C&M-GMS Global Sum,PRC DELEGATED CO-COMMISSIONING,NHS BARNSLEY GP,15122612,"52,069.41 ",
Department of Health,NHS Barnsley CCG,30/11/2016,C&M-GMS Prem Healthcentre Rent,PRC DELEGATED CO-COMMISSIONING,NHS BARNSLEY GP,15122612,"20,522.19 ",
Department of Health,NHS Barnsley CCG,30/11/2016,C&M-GMS QOF Aspiration,PRC DELEGATED CO-COMMISSIONING,NHS BARNSLEY GP,15122612,"5,719.94 ",
Department of Health,NHS Barnsley CCG,30/11/2016,C&M-PMS Contract Value,PRC DELEGATED CO-COMMISSIONING,NHS BARNSLEY GP,14915984,"(85,065.56)",
Department of Health,NHS Barnsley CCG,30/11/2016,C&M-PMS GP Statutory Levy,PRC DELEGATED CO-COMMISSIONING,NHS BARNSLEY GP,14915984,(439.29),
Department of Health,NHS Barnsley CCG,30/11/2016,C&M-PMS Out of Hours Opt Outs,PRC DELEGATED CO-COMMISSIONING,NHS BARNSLEY GP,14915984,(94.51),
Department of Health,NHS Barnsley CCG,30/11/2016,C&M-PMS Voluntary Levy,PRC DELEGATED CO-COMMISSIONING,NHS BARNSLEY GP,14915984,(76.84),
Department of Health,NHS Barnsley CCG,30/11/2016,ME-PMS GP Pension EEs-PMS,PRC DELEGATED CO-COMMISSIONING,NHS BARNSLEY GP,14915984,"(6,753.36)",
Department of Health,NHS Barnsley CCG,30/11/2016,ME-PMS GP Pension ERs Adjs - PMS,PRC DELEGATED CO-COMMISSIONING,NHS BARNSLEY GP,14915984,"(7,565.93)",
Department of Health,NHS Barnsley CCG,30/11/2016,C&M-PMS Contract Value,PRC DELEGATED CO-COMMISSIONING,NHS BARNSLEY GP,14915985,"179,313.57 ",
Department of Health,NHS Barnsley CCG,30/11/2016,C&M-PMS DES Learn Dsblty Hlth Chk,PRC DELEGATED CO-COMMISSIONING,NHS BARNSLEY GP,14915985,116.00 ,
Department of Health,NHS Barnsley CCG,30/11/2016,C&M-PMS DES UNPLANNED ADMISSIONS,PRC DELEGATED CO-COMMISSIONING,NHS BARNSLEY GP,14915985,"10,193.26 ",
Department of Health,NHS Barnsley CCG,30/11/2016,C&M-PMS Out of Hours Opt Outs,PRC DELEGATED CO-COMMISSIONING,NHS BARNSLEY GP,14915985,"(4,753.09)",
Department of Health,NHS Barnsley CCG,30/11/2016,C&M-PMS Prem Rates,PRC DELEGATED CO-COMMISSIONING,NHS BARNSLEY GP,14915985,"2,348.33 ",
Department of Health,NHS Barnsley CCG,30/11/2016,C&M-PMS QOF Aspiration,PRC DELEGATED CO-COMMISSIONING,NHS BARNSLEY GP,14915985,"11,102.10 ",
Department of Health,NHS Barnsley CCG,30/11/2016,C&M-GMS Global Sum,PRC DELEGATED CO-COMMISSIONING,NHS BARNSLEY GP,15122616,"42,310.18 ",
Department of Health,NHS Barnsley CCG,30/11/2016,C&M-GMS Prem Notional Rent,PRC DELEGATED CO-COMMISSIONING,NHS BARNSLEY GP,15122616,"2,541.67 ",
Department of Health,NHS Barnsley CCG,30/11/2016,C&M-GMS Prem Rates,PRC DELEGATED CO-COMMISSIONING,NHS BARNSLEY GP,15122616,973.29 ,
Department of Health,NHS Barnsley CCG,30/11/2016,C&M-GMS Prem Water Rates,PRC DELEGATED CO-COMMISSIONING,NHS BARNSLEY GP,15122616,137.65 ,
Department of Health,NHS Barnsley CCG,30/11/2016,C&M-GMS QOF Aspiration,PRC DELEGATED CO-COMMISSIONING,NHS BARNSLEY GP,15122616,"3,306.22 ",
Department of Health,NHS Barnsley CCG,30/11/2016,C&M-PMS Contract Value,PRC DELEGATED CO-COMMISSIONING,NHS BARNSLEY GP,14914877,"(32,829.50)",
Department of Health,NHS Barnsley CCG,30/11/2016,C&M-PMS GP Statutory Levy,PRC DELEGATED CO-COMMISSIONING,NHS BARNSLEY GP,14914877,(141.52),
Department of Health,NHS Barnsley CCG,30/11/2016,C&M-PMS Out of Hours Opt Outs,PRC DELEGATED CO-COMMISSIONING,NHS BARNSLEY GP,14914877,(53.13),
Department of Health,NHS Barnsley CCG,30/11/2016,C&M-PMS Voluntary Levy,PRC DELEGATED CO-COMMISSIONING,NHS BARNSLEY GP,14914877,(24.75),
Department of Health,NHS Barnsley CCG,30/11/2016,ME-PMS GP Pension EEs-PMS,PRC DELEGATED CO-COMMISSIONING,NHS BARNSLEY GP,14914877,"(1,287.50)",
Department of Health,NHS Barnsley CCG,30/11/2016,ME-PMS GP Pension ERs Adjs - PMS,PRC DELEGATED CO-COMMISSIONING,NHS BARNSLEY GP,14914877,"(1,472.90)",
Department of Health,NHS Barnsley CCG,30/11/2016,C&M-PMS Contract Value,PRC DELEGATED CO-COMMISSIONING,NHS BARNSLEY GP,14914878,"69,503.43 ",
Department of Health,NHS Barnsley CCG,30/11/2016,C&M-PMS Out of Hours Opt Outs,PRC DELEGATED CO-COMMISSIONING,NHS BARNSLEY GP,14914878,"(1,768.50)",
Department of Health,NHS Barnsley CCG,30/11/2016,C&M-PMS Prem Healthcentre Rent,PRC DELEGATED CO-COMMISSIONING,NHS BARNSLEY GP,14914878,"10,835.69 ",
Department of Health,NHS Barnsley CCG,30/11/2016,C&M-PMS QOF Aspiration,PRC DELEGATED CO-COMMISSIONING,NHS BARNSLEY GP,14914878,"4,195.24 ",
Department of Health,NHS Barnsley CCG,30/11/2016,Income tax <1Yr,BALANCE SHEET,HMRC,14981350,"50,058.68 ",
Department of Health,NHS Barnsley CCG,30/11/2016,Income tax <1Yr-Student Loans,BALANCE SHEET,HMRC,14981350,"1,423.00 ",
Department of Health,NHS Barnsley CCG,30/11/2016,National Insurance < 1 yr-NI- ERS,BALANCE SHEET,HMRC,14981350,"35,523.33 ",
Department of Health,NHS Barnsley CCG,30/11/2016,National Insurance < 1 yr-NI-EES,BALANCE SHEET,HMRC,14981350,"25,958.30 ",
Department of Health,NHS Barnsley CCG,30/11/2016,Statutory Mat Pay < 1 yr,BALANCE SHEET,HMRC,14981350,"(1,847.47)",
Department of Health,NHS Barnsley CCG,30/11/2016,C&M-GMS Global Sum,PRC DELEGATED CO-COMMISSIONING,NHS BARNSLEY GP,15122618,"77,741.28 ",
Department of Health,NHS Barnsley CCG,30/11/2016,C&M-GMS Prem Healthcentre Rent,PRC DELEGATED CO-COMMISSIONING,NHS BARNSLEY GP,15122618,"22,577.78 ",
Department of Health,NHS Barnsley CCG,30/11/2016,C&M-GMS Prem Notional Rent,PRC DELEGATED CO-COMMISSIONING,NHS BARNSLEY GP,15122618,"1,312.50 ",
Department of Health,NHS Barnsley CCG,30/11/2016,C&M-GMS Prem Rates,PRC DELEGATED CO-COMMISSIONING,NHS BARNSLEY GP,15122618,653.40 ,
Department of Health,NHS Barnsley CCG,30/11/2016,C&M-GMS Prem Water Rates,PRC DELEGATED CO-COMMISSIONING,NHS BARNSLEY GP,15122618,67.21 ,
Department of Health,NHS Barnsley CCG,30/11/2016,C&M-GMS QOF Aspiration,PRC DELEGATED CO-COMMISSIONING,NHS BARNSLEY GP,15122618,"8,766.44 ",
Department of Health,NHS Barnsley CCG,30/11/2016,C&M-PMS Contract Value,PRC DELEGATED CO-COMMISSIONING,NHS BARNSLEY GP,14915986,"(44,156.29)",
Department of Health,NHS Barnsley CCG,30/11/2016,C&M-PMS GP Statutory Levy,PRC DELEGATED CO-COMMISSIONING,NHS BARNSLEY GP,14915986,(212.18),
Department of Health,NHS Barnsley CCG,30/11/2016,C&M-PMS Out of Hours Opt Outs,PRC DELEGATED CO-COMMISSIONING,NHS BARNSLEY GP,14915986,(53.77),
Department of Health,NHS Barnsley CCG,30/11/2016,C&M-PMS Voluntary Levy,PRC DELEGATED CO-COMMISSIONING,NHS BARNSLEY GP,14915986,(37.11),
Department of Health,NHS Barnsley CCG,30/11/2016,ME-PMS GP Pension EEs-PMS,PRC DELEGATED CO-COMMISSIONING,NHS BARNSLEY GP,14915986,(846.79),
Department of Health,NHS Barnsley CCG,30/11/2016,ME-PMS GP Pension ERs Adjs - PMS,PRC DELEGATED CO-COMMISSIONING,NHS BARNSLEY GP,14915986,(896.97),
Department of Health,NHS Barnsley CCG,30/11/2016,C&M-PMS Baseline Adjustment,PRC DELEGATED CO-COMMISSIONING,NHS BARNSLEY GP,14915987,"3,001.58 ",
Department of Health,NHS Barnsley CCG,30/11/2016,C&M-PMS Contract Value,PRC DELEGATED CO-COMMISSIONING,NHS BARNSLEY GP,14915987,"89,209.77 ",
Department of Health,NHS Barnsley CCG,30/11/2016,C&M-PMS Out of Hours Opt Outs,PRC DELEGATED CO-COMMISSIONING,NHS BARNSLEY GP,14915987,"(2,155.39)",
Department of Health,NHS Barnsley CCG,30/11/2016,C&M-PMS Prem Healthcentre Rent,PRC DELEGATED CO-COMMISSIONING,NHS BARNSLEY GP,14915987,"5,694.47 ",
Department of Health,NHS Barnsley CCG,30/11/2016,C&M-PMS Prem Notional Rent,PRC DELEGATED CO-COMMISSIONING,NHS BARNSLEY GP,14915987,"3,583.33 ",
Department of Health,NHS Barnsley CCG,30/11/2016,C&M-PMS QOF Aspiration,PRC DELEGATED CO-COMMISSIONING,NHS BARNSLEY GP,14915987,"4,198.69 ",
Department of Health,NHS Barnsley CCG,30/11/2016,External Data Contracts,COMMISSIONING SCHEMES,KIER BUSINESS SERVICES LTD,14929301,"22,440.00 ",GB900540375
Department of Health,NHS Barnsley CCG,30/11/2016,External Data Contracts,CORPORATE COSTS & SERVICES,KIER BUSINESS SERVICES LTD,14929301,"11,953.00 ",GB900540375
Department of Health,NHS Barnsley CCG,30/11/2016,Telecoms-Data lines,PRIMARY CARE IT,KIER BUSINESS SERVICES LTD,14929301,"51,354.00 ",GB900540375
Department of Health,NHS Barnsley CCG,30/11/2016,C&M-PMS Baseline Adjustment,PRC DELEGATED CO-COMMISSIONING,NHS BARNSLEY GP,14914876,"1,386.00 ",
Department of Health,NHS Barnsley CCG,30/11/2016,C&M-PMS Contract Value,PRC DELEGATED CO-COMMISSIONING,NHS BARNSLEY GP,14914876,"47,066.27 ",
Department of Health,NHS Barnsley CCG,30/11/2016,C&M-PMS DES Learn Dsblty Hlth Chk,PRC DELEGATED CO-COMMISSIONING,NHS BARNSLEY GP,14914876,116.00 ,
Department of Health,NHS Barnsley CCG,30/11/2016,C&M-PMS DES UNPLANNED ADMISSIONS,PRC DELEGATED CO-COMMISSIONING,NHS BARNSLEY GP,14914876,"2,773.54 ",
Department of Health,NHS Barnsley CCG,30/11/2016,C&M-PMS Out of Hours Opt Outs,PRC DELEGATED CO-COMMISSIONING,NHS BARNSLEY GP,14914876,"(1,151.58)",
Department of Health,NHS Barnsley CCG,30/11/2016,C&M-PMS Prem Notional Rent,PRC DELEGATED CO-COMMISSIONING,NHS BARNSLEY GP,14914876,"4,145.83 ",
Department of Health,NHS Barnsley CCG,30/11/2016,C&M-PMS Prem Rates,PRC DELEGATED CO-COMMISSIONING,NHS BARNSLEY GP,14914876,762.30 ,
Department of Health,NHS Barnsley CCG,30/11/2016,C&M-PMS QOF Aspiration,PRC DELEGATED CO-COMMISSIONING,NHS BARNSLEY GP,14914876,"1,890.25 ",
Department of Health,NHS Barnsley CCG,30/11/2016,C&M-PMS Cost of Drugs -Dispensing,LOCAL ENHANCED SERVICES,NHS BARNSLEY GP,15144340,"30,763.61 ",
Department of Health,NHS Barnsley CCG,30/11/2016,C&M-PMS Prof fees Dispensing,PRC DELEGATED CO-COMMISSIONING,NHS BARNSLEY GP,15144340,"4,799.69 ",
Department of Health,NHS Barnsley CCG,30/11/2016,C&M-PMS Prsc Chrgs Cll&Rmttd by GPs,LOCAL ENHANCED SERVICES,NHS BARNSLEY GP,15144340,"1,402.80 ",
Department of Health,NHS Barnsley CCG,30/11/2016,C&M-APMS Contract Value,PRC DELEGATED CO-COMMISSIONING,NHS BARNSLEY GP,14915991,"17,005.38 ",
Department of Health,NHS Barnsley CCG,30/11/2016,C&M-APMS OOH Opt Outs,PRC DELEGATED CO-COMMISSIONING,NHS BARNSLEY GP,14915991,(827.83),
Department of Health,NHS Barnsley CCG,30/11/2016,C&M-APMS Prem Other,PRC DELEGATED CO-COMMISSIONING,NHS BARNSLEY GP,14915991,"4,744.50 ",
Department of Health,NHS Barnsley CCG,30/11/2016,C&M-PMS Contract Value,PRC DELEGATED CO-COMMISSIONING,NHS BARNSLEY GP,14915991,"15,436.58 ",
Department of Health,NHS Barnsley CCG,30/11/2016,C&M-PMS Prem Healthcentre Rent,PRC DELEGATED CO-COMMISSIONING,NHS BARNSLEY GP,14915991,12.41 ,
Department of Health,NHS Barnsley CCG,30/11/2016,C&M-PMS QOF Aspiration,PRC DELEGATED CO-COMMISSIONING,NHS BARNSLEY GP,14915991,"1,422.76 ",
Department of Health,NHS Barnsley CCG,30/11/2016,Hcare Srv Rec NHS Trust-Contract Baseline,ACUTE COMMISSIONING,LEEDS TEACHING HOSPITALS NHS TRUST,14929351,"38,714.98 ",
Department of Health,NHS Barnsley CCG,31/10/2016,Hcare Srv Rec NHS Trust-CQUIN,ACUTE COMMISSIONING,LEEDS TEACHING HOSPITALS NHS TRUST,14673561,"5,746.35 ",
Department of Health,NHS Barnsley CCG,31/10/2016,Hcare Srv Rec NHS Trust-Contract Baseline,ACUTE COMMISSIONING,LEEDS TEACHING HOSPITALS NHS TRUST,14673561,"69,626.95 ",
Department of Health,NHS Barnsley CCG,30/11/2016,Hcare Srv Rec NHS Trust-CQUIN,ACUTE COMMISSIONING,MID YORKSHIRE HOSPITALS NHS TRUST,14823105,"2,195.00 ",654967780
Department of Health,NHS Barnsley CCG,30/11/2016,Hcare Srv Rec NHS Trust-Contract Baseline,ACUTE COMMISSIONING,MID YORKSHIRE HOSPITALS NHS TRUST,14823105,"205,233.00 ",654967780
Department of Health,NHS Barnsley CCG,30/11/2016,Other Gen Supplies & Srv,PATIENT TRANSPORT,NHS SHEFFIELD CCG,14929306,"81,949.00 ",
Department of Health,NHS Barnsley CCG,30/11/2016,Other Gen Supplies & Srv,CORPORATE COSTS & SERVICES,NHS SHEFFIELD CCG,15173584,"46,246.00 ",
Department of Health,NHS Barnsley CCG,31/10/2016,Seconded-Basic Sal-Staff fm oth org,PROGRAMME PROJECTS,NHS SHEFFIELD CCG,14617014,"78,445.00 ",
Department of Health,NHS Barnsley CCG,30/11/2016,Clinical&Medical-Commercial Sector,ACUTE COMMISSIONING,ONEHEALTH GROUP,15012762,"138,053.58 ",
Department of Health,NHS Barnsley CCG,30/11/2016,Clinical&Medical-Commercial Sector,ACUTE COMMISSIONING,ONEHEALTH GROUP,15095651,"102,782.68 ",
Department of Health,NHS Barnsley CCG,30/11/2016,Clinical&Medical-Commercial Sector,ACUTE COMMISSIONING,PAIN MANAGEMENT SOLUTIONS LTD,15012792,"29,134.67 ",
Department of Health,NHS Barnsley CCG,30/11/2016,Cont Care-Physical Disab (65+),CHC ADULT FULLY FUNDED,PARKLANDS CARE HOME-DONCASTER,15012749,"31,189.28 ",
Department of Health,NHS Barnsley CCG,30/11/2016,Cont Care-Physical Disab (65+),CHC ADULT FULLY FUNDED,PARKLANDS CARE HOME-DONCASTER,15032781,"(31,189.28)",
Department of Health,NHS Barnsley CCG,30/11/2016,Hcare Srv Rec Fdtn Trust-CQUIN,MENTAL HEALTH CONTRACTS,ROTHERHAM DONCASTER & SOUTH HUMBER MENTAL HEALTH NHS FOUNDATION TRUST,14929368,674.86 ,
Department of Health,NHS Barnsley CCG,30/11/2016,Hcare Srv Rec Fdtn Trust-Contract Baseline,MENTAL HEALTH CONTRACTS,ROTHERHAM DONCASTER & SOUTH HUMBER MENTAL HEALTH NHS FOUNDATION TRUST,14929368,"49,161.69 ",
Department of Health,NHS Barnsley CCG,31/10/2016,Hcare Srv Rec Fdtn Trust-CQUIN,MENTAL HEALTH CONTRACTS,ROTHERHAM DONCASTER & SOUTH HUMBER MENTAL HEALTH NHS FOUNDATION TRUST,14617020,674.86 ,
Department of Health,NHS Barnsley CCG,31/10/2016,Hcare Srv Rec Fdtn Trust-Contract Baseline,MENTAL HEALTH CONTRACTS,ROTHERHAM DONCASTER & SOUTH HUMBER MENTAL HEALTH NHS FOUNDATION TRUST,14617020,"49,161.69 ",
Department of Health,NHS Barnsley CCG,30/11/2016,Hcare Srv Rec Fdtn Trust-CQUIN,COMMUNITY SERVICES,ROTHERHAM NHS FOUNDATION TRUST,15166230,"1,019.00 ",
Department of Health,NHS Barnsley CCG,30/11/2016,Hcare Srv Rec Fdtn Trust-Contract Baseline,COMMUNITY SERVICES,ROTHERHAM NHS FOUNDATION TRUST,15166230,"40,746.00 ",
Department of Health,NHS Barnsley CCG,31/10/2016,Hcare Srv Rec Fdtn Trust-CQUIN,COMMUNITY SERVICES,ROTHERHAM NHS FOUNDATION TRUST,14746340,"1,019.00 ",
Department of Health,NHS Barnsley CCG,31/10/2016,Hcare Srv Rec Fdtn Trust-Contract Baseline,COMMUNITY SERVICES,ROTHERHAM NHS FOUNDATION TRUST,14746340,"40,746.00 ",
Department of Health,NHS Barnsley CCG,31/10/2016,Hcare Srv Rec Fdtn Trust-CQUIN,ACUTE COMMISSIONING,ROTHERHAM NHS FOUNDATION TRUST,14746349,"10,072.00 ",
Department of Health,NHS Barnsley CCG,31/10/2016,Hcare Srv Rec Fdtn Trust-Contract Baseline,ACUTE COMMISSIONING,ROTHERHAM NHS FOUNDATION TRUST,14746349,"956,207.00 ",
Department of Health,NHS Barnsley CCG,30/11/2016,C&M-PMS Contract Value,PRC DELEGATED CO-COMMISSIONING,NHS BARNSLEY GP,14914879,"(32,412.67)",
Department of Health,NHS Barnsley CCG,30/11/2016,C&M-PMS GP Statutory Levy,PRC DELEGATED CO-COMMISSIONING,NHS BARNSLEY GP,14914879,(168.12),
Department of Health,NHS Barnsley CCG,30/11/2016,C&M-PMS Out of Hours Opt Outs,PRC DELEGATED CO-COMMISSIONING,NHS BARNSLEY GP,14914879,(436.22),
Department of Health,NHS Barnsley CCG,30/11/2016,C&M-PMS Voluntary Levy,PRC DELEGATED CO-COMMISSIONING,NHS BARNSLEY GP,14914879,(29.41),
Department of Health,NHS Barnsley CCG,30/11/2016,ME-PMS GP Pension EEs-PMS,PRC DELEGATED CO-COMMISSIONING,NHS BARNSLEY GP,14914879,"(1,426.25)",
Department of Health,NHS Barnsley CCG,30/11/2016,ME-PMS GP Pension ERs Adjs - PMS,PRC DELEGATED CO-COMMISSIONING,NHS BARNSLEY GP,14914879,"(1,561.08)",
Department of Health,NHS Barnsley CCG,30/11/2016,C&M-PMS Baseline Adjustment,PRC DELEGATED CO-COMMISSIONING,NHS BARNSLEY GP,14936064,407.50 ,
Department of Health,NHS Barnsley CCG,30/11/2016,C&M-PMS Contract Value,PRC DELEGATED CO-COMMISSIONING,NHS BARNSLEY GP,14936064,"75,591.91 ",
Department of Health,NHS Barnsley CCG,30/11/2016,C&M-PMS Out of Hours Opt Outs,PRC DELEGATED CO-COMMISSIONING,NHS BARNSLEY GP,14936064,"(1,701.08)",
Department of Health,NHS Barnsley CCG,30/11/2016,C&M-PMS Prem Notional Rent,PRC DELEGATED CO-COMMISSIONING,NHS BARNSLEY GP,14936064,"3,041.67 ",
Department of Health,NHS Barnsley CCG,30/11/2016,C&M-PMS QOF Aspiration,PRC DELEGATED CO-COMMISSIONING,NHS BARNSLEY GP,14936064,"2,458.56 ",
Department of Health,NHS Barnsley CCG,30/11/2016,ME - PMS GP Prior Year ERs,PRC DELEGATED CO-COMMISSIONING,NHS BARNSLEY GP,14936064,"7,054.64 ",
Department of Health,NHS Barnsley CCG,30/11/2016,ME-PMS GP Prior Year EEs,PRC DELEGATED CO-COMMISSIONING,NHS BARNSLEY GP,14936064,"6,660.00 ",
Department of Health,NHS Barnsley CCG,30/11/2016,C&M-GMS DES UNPLANNED ADMISSIONS,PRC DELEGATED CO-COMMISSIONING,NHS BARNSLEY GP,15124196,"6,246.24 ",
Department of Health,NHS Barnsley CCG,30/11/2016,C&M-GMS Global Sum,PRC DELEGATED CO-COMMISSIONING,NHS BARNSLEY GP,15124196,"57,082.83 ",
Department of Health,NHS Barnsley CCG,30/11/2016,C&M-GMS Prem Actual Rent,PRC DELEGATED CO-COMMISSIONING,NHS BARNSLEY GP,15124196,"4,750.00 ",
Department of Health,NHS Barnsley CCG,30/11/2016,C&M-GMS QOF Aspiration,PRC DELEGATED CO-COMMISSIONING,NHS BARNSLEY GP,15124196,"7,060.35 ",
Department of Health,NHS Barnsley CCG,31/10/2016,Hcare Srv Rec Fdtn Trust-CQUIN,ACUTE COMMISSIONING,SHEFFIELD CHILDRENS NHS FOUNDATION TRUST,14617004,"2,045.48 ",
Department of Health,NHS Barnsley CCG,31/10/2016,Hcare Srv Rec Fdtn Trust-Contract Baseline,ACUTE COMMISSIONING,SHEFFIELD CHILDRENS NHS FOUNDATION TRUST,14617004,"174,355.39 ",
Department of Health,NHS Barnsley CCG,30/11/2016,Hcare Srv Rec Fdtn Trust-Contract Baseline,ACUTE COMMISSIONING,SHEFFIELD TEACHING HOSPITALS NHS FOUNDATION TRUST,14851525,"191,466.00 ",654400165
Department of Health,NHS Barnsley CCG,30/11/2016,Hcare Srv Rec Fdtn Trust-Contract Baseline,ACUTE COMMISSIONING,SHEFFIELD TEACHING HOSPITALS NHS FOUNDATION TRUST,14851535,"1,901,486.00 ",654400165
Department of Health,NHS Barnsley CCG,31/10/2016,Hcare Srv Rec Fdtn Trust-CQUIN,ACUTE COMMISSIONING,SHEFFIELD TEACHING HOSPITALS NHS FOUNDATION TRUST,14632170,"62,863.00 ",654400165
Department of Health,NHS Barnsley CCG,30/11/2016,Hcare Srv Rec Fdtn Trust-CQUIN,COMMUNITY SERVICES,SOUTH WEST YORKSHIRE PARTNERSHIP NHS FOUNDATION TRUST,14818886,"176,906.00 ",
Department of Health,NHS Barnsley CCG,30/11/2016,Hcare Srv Rec Fdtn Trust-CQUIN,COMMUNITY SERVICES,SOUTH WEST YORKSHIRE PARTNERSHIP NHS FOUNDATION TRUST,14823115,"(176,906.00)",
Department of Health,NHS Barnsley CCG,30/11/2016,Hcare Srv Rec Fdtn Trust-CQUIN,COMMUNITY SERVICES,SOUTH WEST YORKSHIRE PARTNERSHIP NHS FOUNDATION TRUST,14823140,"36,125.00 ",
Department of Health,NHS Barnsley CCG,30/11/2016,Hcare Srv Rec Fdtn Trust-CQUIN,LEARNING DIFFICULTIES,SOUTH WEST YORKSHIRE PARTNERSHIP NHS FOUNDATION TRUST,14823140,"30,885.00 ",
Department of Health,NHS Barnsley CCG,30/11/2016,Hcare Srv Rec Fdtn Trust-Contract Baseline,COMMUNITY SERVICES,SOUTH WEST YORKSHIRE PARTNERSHIP NHS FOUNDATION TRUST,14823140,"559,833.00 ",
Department of Health,NHS Barnsley CCG,30/11/2016,Hcare Srv Rec Fdtn Trust-Contract Baseline,LEARNING DIFFICULTIES,SOUTH WEST YORKSHIRE PARTNERSHIP NHS FOUNDATION TRUST,14823140,"4,855,872.00 ",
Department of Health,NHS Barnsley CCG,31/10/2016,Clinical&Medical-Serv Recd-F Trsts,PROGRAMME PROJECTS,SOUTH WEST YORKSHIRE PARTNERSHIP NHS FOUNDATION TRUST,14617017,"48,277.25 ",
Department of Health,NHS Barnsley CCG,31/10/2016,Telecoms-Data lines,ADMINISTRATION & BUSINESS SUPPORT,SOUTH WEST YORKSHIRE PARTNERSHIP NHS FOUNDATION TRUST,14795161,"57,412.80 ",
Department of Health,NHS Barnsley CCG,30/11/2016,Hcare Srv Rec NHS Trust-Contract Cost per Case,NCAS/OATS,UNITED LINCOLNSHIRE HOSPITALS NHS TRUST,14851559,"54,739.90 ",
Department of Health,NHS Barnsley CCG,30/11/2016,Cont Care-Learning Disab(<65),CHC ADULT FULLY FUNDED,VOYAGE LTD,15116049,"30,803.46 ",787455180
Department of Health,NHS Barnsley CCG,30/11/2016,C&M-PMS Contract Value,PRC DELEGATED CO-COMMISSIONING,NHS BARNSLEY GP,14915988,"(60,734.00)",
Department of Health,NHS Barnsley CCG,30/11/2016,C&M-PMS GP Statutory Levy,PRC DELEGATED CO-COMMISSIONING,NHS BARNSLEY GP,14915988,(290.44),
Department of Health,NHS Barnsley CCG,30/11/2016,C&M-PMS Out of Hours Opt Outs,PRC DELEGATED CO-COMMISSIONING,NHS BARNSLEY GP,14915988,(86.60),
Department of Health,NHS Barnsley CCG,30/11/2016,C&M-PMS Prem Healthcentre Rent,PRC DELEGATED CO-COMMISSIONING,NHS BARNSLEY GP,14915988,(0.88),
Department of Health,NHS Barnsley CCG,30/11/2016,C&M-PMS Voluntary Levy,PRC DELEGATED CO-COMMISSIONING,NHS BARNSLEY GP,14915988,(50.80),
Department of Health,NHS Barnsley CCG,30/11/2016,ME-PMS GP Pension EEs-PMS,PRC DELEGATED CO-COMMISSIONING,NHS BARNSLEY GP,14915988,"(1,615.80)",
Department of Health,NHS Barnsley CCG,30/11/2016,ME-PMS GP Pension ERs Adjs - PMS,PRC DELEGATED CO-COMMISSIONING,NHS BARNSLEY GP,14915988,"(1,967.45)",
Department of Health,NHS Barnsley CCG,30/11/2016,C&M-PMS Contract Value,PRC DELEGATED CO-COMMISSIONING,NHS BARNSLEY GP,14915989,"128,551.23 ",
Department of Health,NHS Barnsley CCG,30/11/2016,C&M-PMS Out of Hours Opt Outs,PRC DELEGATED CO-COMMISSIONING,NHS BARNSLEY GP,14915989,"(3,396.92)",
Department of Health,NHS Barnsley CCG,30/11/2016,C&M-PMS Prem Actual Rent,PRC DELEGATED CO-COMMISSIONING,NHS BARNSLEY GP,14915989,336.75 ,
Department of Health,NHS Barnsley CCG,30/11/2016,C&M-PMS Prem Healthcentre Rent,PRC DELEGATED CO-COMMISSIONING,NHS BARNSLEY GP,14915989,"15,940.23 ",
Department of Health,NHS Barnsley CCG,30/11/2016,C&M-PMS QOF Aspiration,PRC DELEGATED CO-COMMISSIONING,NHS BARNSLEY GP,14915989,"6,208.13 ",
Department of Health,NHS Barnsley CCG,30/11/2016,C&M-PMS Contract Value,PRC DELEGATED CO-COMMISSIONING,NHS BARNSLEY GP,14914757,"(33,075.96)",
Department of Health,NHS Barnsley CCG,30/11/2016,C&M-PMS GP Statutory Levy,PRC DELEGATED CO-COMMISSIONING,NHS BARNSLEY GP,14914757,(154.48),
Department of Health,NHS Barnsley CCG,30/11/2016,C&M-PMS Out of Hours Opt Outs,PRC DELEGATED CO-COMMISSIONING,NHS BARNSLEY GP,14914757,(27.15),
Department of Health,NHS Barnsley CCG,30/11/2016,C&M-PMS Voluntary Levy,PRC DELEGATED CO-COMMISSIONING,NHS BARNSLEY GP,14914757,(27.02),
Department of Health,NHS Barnsley CCG,30/11/2016,ME-PMS GP Pension EEs-PMS,PRC DELEGATED CO-COMMISSIONING,NHS BARNSLEY GP,14914757,(520.83),
Department of Health,NHS Barnsley CCG,30/11/2016,ME-PMS GP Pension ERs Adjs - PMS,PRC DELEGATED CO-COMMISSIONING,NHS BARNSLEY GP,14914757,(595.83),
Department of Health,NHS Barnsley CCG,30/11/2016,C&M-PMS Contract Value,PRC DELEGATED CO-COMMISSIONING,NHS BARNSLEY GP,14914808,"69,578.28 ",
Department of Health,NHS Barnsley CCG,30/11/2016,C&M-PMS Out of Hours Opt Outs,PRC DELEGATED CO-COMMISSIONING,NHS BARNSLEY GP,14914808,"(1,850.25)",
Department of Health,NHS Barnsley CCG,30/11/2016,C&M-PMS Prem Healthcentre Rent,PRC DELEGATED CO-COMMISSIONING,NHS BARNSLEY GP,14914808,"1,189.84 ",
Department of Health,NHS Barnsley CCG,30/11/2016,C&M-PMS Prem Rates,PRC DELEGATED CO-COMMISSIONING,NHS BARNSLEY GP,14914808,"3,064.83 ",
Department of Health,NHS Barnsley CCG,30/11/2016,C&M-PMS QOF Aspiration,PRC DELEGATED CO-COMMISSIONING,NHS BARNSLEY GP,14914808,"4,059.35 ",
Department of Health,NHS Barnsley CCG,30/11/2016,Hcare Srv Rec NHS Trust-Contract Baseline,AMBULANCE SERVICES,YORKSHIRE AMBULANCE SERVICE NHS TRUST,14929314,"608,043.00 ",
Department of Health,NHS Barnsley CCG,30/11/2016,Hcare Srv Rec NHS Trust-Contract Baseline,NHS 111,YORKSHIRE AMBULANCE SERVICE NHS TRUST,14929319,"47,766.40 ",
Department of Health,NHS Barnsley CCG,30/11/2016,Hcare Srv Rec NHS Trust-Contract Baseline,PATIENT TRANSPORT,YORKSHIRE AMBULANCE SERVICE NHS TRUST,14929324,"125,233.00 ",
Department of Health,NHS Barnsley CCG,30/11/2016,Hcare Srv Rec NHS Trust-Non Contract,WINTER PRESSURES,YORKSHIRE AMBULANCE SERVICE NHS TRUST,14929328,"35,333.33 ",
,,,,,,,"28,957,304.01 ",
